Workbook

Sheet Kalkulator pinjaman gadai janji
A1: KALKULATOR PINJAMAN GADAI JANJI
B3: inputs | C3: Amaun Gadai Janji | E3: RM300,000 | G3: statistik kunci | H3: Bayaran Pinjaman Bulanan | J3: =IF(NilaiDimasukkan,PMT(KadarFaedah/12,TempohPinjaman,-AmaunPinjaman),0) -> RM1,133 | M3: input pilihan | N3: Tarikh Mula Pinjaman | P3: =TODAY()+30 -> 2012-09-06
H4: Jumlah Bayaran Bulanan | J4: =IF(NilaiDimasukkan,SUM(jumlah_bayaran),0) -> RM482,681
C5: Kadar Faedah | E5: 5.0% | H5: Jumlah Bayaran Pinjaman | J5: =IF(NilaiDimasukkan,SUM(jumlah_bayaran_pinjaman),0) -> RM362,681 | N5: Kadar Cukai Harta | Q5: 1.50%
H6: Jumlah Faedah Dibayar | J6: =IF(NilaiDimasukkan,SUM(faedah),0) -> RM161,929
C7: Tempoh Pinjaman (dalam bulan) | E7: 320 | H7: Bulan Dikurangkan dengan Bayaran Tambahan | K7: =IF(NilaiDimasukkan,(TempohPinjaman-COUNTIF(TiadaBakiBayaran,">0")),0) -> 1 | N7: Amaun Cukai Harta | R7: =Q5*E3/12 -> RM375
H8: Jumlah Bayaran Tambahan | J8: =IF(NilaiDimasukkan,SUM(bayaran_tambahan),0) -> RM200
C9: Amaun Pinjaman | E9: RM200,000 | H9: Faedah Yang Dijimatkan | J9: =IF(NilaiDimasukkan,ROUND(-SUMPRODUCT(IPMT($E$5/12,ROW(OFFSET(A1,,,$E$7,1)),$E$7,$E$9)),0)-ROUND(J6,0),0) -> RM552 | N9: Kadar PMI | P9: 5.0%
N11: Amaun PMI | P11: =KadarPMI*AmaunPinjaman/12 -> RM833
B15: =IFERROR(IF(NilaiDimasukkan,PeratusanMeningkatMenurun,""),"") -> 0.171875 | C15: Jika anda membayar | D15: lebih 10% | E15: =IFERROR(IF(NilaiDimasukkan,"setiap bulan, "&IF(PeratusanMeningkatMenurun>0,"tempoh pinjaman anda akan berkurang kepada "&TempohBayaranMeningkatMenurun&" bulan dan tempoh bayaran anda akan berkurang sebanyak "&TEXT(PeratusanMeningkatMenurun,"0.0%"),IF(PeratusanMeningkatMenurun=0,"tempoh pinjaman anda tidak akan berubah dan tempoh bayaran anda tidak akan bertambah atau berkurang",IF(PeratusanMeningkatMenurun<0,"tempoh pinjaman anda akan bertambah kepada "&TempohBayaranMeningkatMenurun&" bulan dan tempoh bayaran anda akan bertambah sebanyak "&TEXT(PeratusanMeningkatMenurun,"0.0%"),""))),""),"") -> setiap bulan, tempoh pinjaman anda akan berkurang kepada 265 bulan dan tempoh bayaran anda akan berkurang sebanyak 17.2%
B18: # | C18: tarikh bayaran | D18: baki pembukaan | E18: faedah | F18: pokok | I18: bayaran tambahan | J18: cukai harta | K18: pmi | L18: jumlah bayaran | O18: baki penutupan | R18: baki #
B19: =ROWS($B$19:B19) -> 1 | C19: =IF(NilaiDimasukkan,PinjamanMula,"") -> 2012-09-06 | D19: =E9 -> RM200,000.00 | E19: =IF(NilaiDimasukkan,-IPMT($E$5/12,1,$E$7-ROWS($C$19:C19)+1,D19),"") -> RM833.33 | F19: =IF(NilaiDimasukkan,-PPMT($E$5/12,1,$E$7-ROWS($C$19:C19)+1,D19),"") -> RM299.42 | I19: RM100.00 | J19: =$R$7 -> RM375.00 | K19: =IF(D19<0.8*$E$3,0,$P$11) -> RM0.00 | L19: =IF(NilaiDimasukkan,E19+F19+I19+J19+K19,"") -> RM1,607.75 | O19: =IF(NilaiDimasukkan,D19-F19-I19,"") -> RM199,600.58 | R19: =IF(NilaiDimasukkan,IF(R18<1,0,NPER($E$5/12,-$J$3,O19)),"") -> 319
B20: =ROWS($B$19:B20) -> 2 | C20: =IF(NilaiDimasukkan,IF(O19>0,EDATE(C19,1),""),"") -> 2012-10-06 | D20: =IF(C20="",0,O19) -> RM199,600.58 | E20: =IFERROR(-IPMT($E$5/12,1,R19,D20),0) -> RM831.67 | F20: =IFERROR(-PPMT($E$5/12,1,R19,D20),0) -> RM301.08 | I20: RM100.00 | J20: =IF(C20="",0,$R$7) -> RM375.00 | K20: =IF(C20="",0,IF(D20<0.8*$E$3,0,$P$11)) -> RM0.00 | L20: =IF(C20="",0,E20+F20+I20+J20+K20) -> RM1,607.75 | O20: =IF(C20="",0,D20-F20-I20) -> RM199,199.50 | R20: =IF(NilaiDimasukkan,IF(R19<1,0,NPER($E$5/12,-$J$3,O20)),"") -> 317
B21: =ROWS($B$19:B21) -> 3 | C21: =IF(O20>0,EDATE(C20,1),"") -> 2012-11-06 | D21: RM199,199.50 | E21: RM830.00 | F21: RM302.75 | J21: RM375.00 | K21: RM0.00 | L21: RM1,507.75 | O21: RM198,896.75 | R21: =IF(NilaiDimasukkan,IF(R20<1,0,NPER($E$5/12,-$J$3,O21)),"") -> 316
B22: =ROWS($B$19:B22) -> 4 | C22: 2012-12-06 | D22: RM198,896.75 | E22: RM828.74 | F22: RM304.02 | J22: RM375.00 | K22: RM0.00 | L22: RM1,507.75 | O22: RM198,592.73 | R22: =IF(NilaiDimasukkan,IF(R21<1,0,NPER($E$5/12,-$J$3,O22)),"") -> 315
B23: =ROWS($B$19:B23) -> 5 | C23: 2013-01-06 | D23: RM198,592.73 | E23: RM827.47 | F23: RM305.28 | J23: RM375.00 | K23: RM0.00 | L23: RM1,507.75 | O23: RM198,287.45 | R23: =IF(NilaiDimasukkan,IF(R22<1,0,NPER($E$5/12,-$J$3,O23)),"") -> 314
B24: =ROWS($B$19:B24) -> 6 | C24: 2013-02-06 | D24: RM198,287.45 | E24: RM826.20 | F24: RM306.55 | J24: RM375.00 | K24: RM0.00 | L24: RM1,507.75 | O24: RM197,980.89 | R24: =IF(NilaiDimasukkan,IF(R23<1,0,NPER($E$5/12,-$J$3,O24)),"") -> 313
B25: =ROWS($B$19:B25) -> 7 | C25: 2013-03-06 | D25: RM197,980.89 | E25: RM824.92 | F25: RM307.83 | J25: RM375.00 | K25: RM0.00 | L25: RM1,507.75 | O25: RM197,673.06 | R25: =IF(NilaiDimasukkan,IF(R24<1,0,NPER($E$5/12,-$J$3,O25)),"") -> 312
B26: =ROWS($B$19:B26) -> 8 | C26: 2013-04-06 | D26: RM197,673.06 | E26: RM823.64 | F26: RM309.11 | J26: RM375.00 | K26: RM0.00 | L26: RM1,507.75 | O26: RM197,363.95 | R26: =IF(NilaiDimasukkan,IF(R25<1,0,NPER($E$5/12,-$J$3,O26)),"") -> 311
B27: =ROWS($B$19:B27) -> 9 | C27: 2013-05-06 | D27: RM197,363.95 | E27: RM822.35 | F27: RM310.40 | J27: RM375.00 | K27: RM0.00 | L27: RM1,507.75 | O27: RM197,053.55 | R27: =IF(NilaiDimasukkan,IF(R26<1,0,NPER($E$5/12,-$J$3,O27)),"") -> 310
B28: =ROWS($B$19:B28) -> 10 | C28: 2013-06-06 | D28: RM197,053.55 | E28: RM821.06 | F28: RM311.70 | J28: RM375.00 | K28: RM0.00 | L28: RM1,507.75 | O28: RM196,741.85 | R28: =IF(NilaiDimasukkan,IF(R27<1,0,NPER($E$5/12,-$J$3,O28)),"") -> 309
B29: =ROWS($B$19:B29) -> 11 | C29: 2013-07-06 | D29: RM196,741.85 | E29: RM819.76 | F29: RM312.99 | J29: RM375.00 | K29: RM0.00 | L29: RM1,507.75 | O29: RM196,428.86 | R29: =IF(NilaiDimasukkan,IF(R28<1,0,NPER($E$5/12,-$J$3,O29)),"") -> 308
B30: =ROWS($B$19:B30) -> 12 | C30: 2013-08-06 | D30: RM196,428.86 | E30: RM818.45 | F30: RM314.30 | J30: RM375.00 | K30: RM0.00 | L30: RM1,507.75 | O30: RM196,114.56 | R30: =IF(NilaiDimasukkan,IF(R29<1,0,NPER($E$5/12,-$J$3,O30)),"") -> 307
B31: =ROWS($B$19:B31) -> 13 | C31: 2013-09-06 | D31: RM196,114.56 | E31: RM817.14 | F31: RM315.61 | J31: RM375.00 | K31: RM0.00 | L31: RM1,507.75 | O31: RM195,798.95 | R31: =IF(NilaiDimasukkan,IF(R30<1,0,NPER($E$5/12,-$J$3,O31)),"") -> 306
B32: =ROWS($B$19:B32) -> 14 | C32: 2013-10-06 | D32: RM195,798.95 | E32: RM815.83 | F32: RM316.92 | J32: RM375.00 | K32: RM0.00 | L32: RM1,507.75 | O32: RM195,482.03 | R32: =IF(NilaiDimasukkan,IF(R31<1,0,NPER($E$5/12,-$J$3,O32)),"") -> 305
B33: =ROWS($B$19:B33) -> 15 | C33: 2013-11-06 | D33: RM195,482.03 | E33: RM814.51 | F33: RM318.24 | J33: RM375.00 | K33: RM0.00 | L33: RM1,507.75 | O33: RM195,163.79 | R33: =IF(NilaiDimasukkan,IF(R32<1,0,NPER($E$5/12,-$J$3,O33)),"") -> 304
B34: =ROWS($B$19:B34) -> 16 | C34: 2013-12-06 | D34: RM195,163.79 | E34: RM813.18 | F34: RM319.57 | J34: RM375.00 | K34: RM0.00 | L34: RM1,507.75 | O34: RM194,844.22 | R34: =IF(NilaiDimasukkan,IF(R33<1,0,NPER($E$5/12,-$J$3,O34)),"") -> 303
B35: =ROWS($B$19:B35) -> 17 | C35: 2014-01-06 | D35: RM194,844.22 | E35: RM811.85 | F35: RM320.90 | J35: RM375.00 | K35: RM0.00 | L35: RM1,507.75 | O35: RM194,523.32 | R35: =IF(NilaiDimasukkan,IF(R34<1,0,NPER($E$5/12,-$J$3,O35)),"") -> 302
B36: =ROWS($B$19:B36) -> 18 | C36: 2014-02-06 | D36: RM194,523.32 | E36: RM810.51 | F36: RM322.24 | J36: RM375.00 | K36: RM0.00 | L36: RM1,507.75 | O36: RM194,201.08 | R36: =IF(NilaiDimasukkan,IF(R35<1,0,NPER($E$5/12,-$J$3,O36)),"") -> 301
B37: =ROWS($B$19:B37) -> 19 | C37: 2014-03-06 | D37: RM194,201.08 | E37: RM809.17 | F37: RM323.58 | J37: RM375.00 | K37: RM0.00 | L37: RM1,507.75 | O37: RM193,877.50 | R37: =IF(NilaiDimasukkan,IF(R36<1,0,NPER($E$5/12,-$J$3,O37)),"") -> 300
B38: =ROWS($B$19:B38) -> 20 | C38: 2014-04-06 | D38: RM193,877.50 | E38: RM807.82 | F38: RM324.93 | J38: RM375.00 | K38: RM0.00 | L38: RM1,507.75 | O38: RM193,552.57 | R38: =IF(NilaiDimasukkan,IF(R37<1,0,NPER($E$5/12,-$J$3,O38)),"") -> 299
B39: =ROWS($B$19:B39) -> 21 | C39: 2014-05-06 | D39: RM193,552.57 | E39: RM806.47 | F39: RM326.28 | J39: RM375.00 | K39: RM0.00 | L39: RM1,507.75 | O39: RM193,226.29 | R39: =IF(NilaiDimasukkan,IF(R38<1,0,NPER($E$5/12,-$J$3,O39)),"") -> 298
B40: =ROWS($B$19:B40) -> 22 | C40: 2014-06-06 | D40: RM193,226.29 | E40: RM805.11 | F40: RM327.64 | J40: RM375.00 | K40: RM0.00 | L40: RM1,507.75 | O40: RM192,898.64 | R40: =IF(NilaiDimasukkan,IF(R39<1,0,NPER($E$5/12,-$J$3,O40)),"") -> 297
B41: =ROWS($B$19:B41) -> 23 | C41: 2014-07-06 | D41: RM192,898.64 | E41: RM803.74 | F41: RM329.01 | J41: RM375.00 | K41: RM0.00 | L41: RM1,507.75 | O41: RM192,569.64 | R41: =IF(NilaiDimasukkan,IF(R40<1,0,NPER($E$5/12,-$J$3,O41)),"") -> 296
B42: =ROWS($B$19:B42) -> 24 | C42: 2014-08-06 | D42: RM192,569.64 | E42: RM802.37 | F42: RM330.38 | J42: RM375.00 | K42: RM0.00 | L42: RM1,507.75 | O42: RM192,239.26 | R42: =IF(NilaiDimasukkan,IF(R41<1,0,NPER($E$5/12,-$J$3,O42)),"") -> 295
B43: =ROWS($B$19:B43) -> 25 | C43: 2014-09-06 | D43: RM192,239.26 | E43: RM801.00 | F43: RM331.75 | J43: RM375.00 | K43: RM0.00 | L43: RM1,507.75 | O43: RM191,907.50 | R43: =IF(NilaiDimasukkan,IF(R42<1,0,NPER($E$5/12,-$J$3,O43)),"") -> 294
B44: =ROWS($B$19:B44) -> 26 | C44: 2014-10-06 | D44: RM191,907.50 | E44: RM799.61 | F44: RM333.14 | J44: RM375.00 | K44: RM0.00 | L44: RM1,507.75 | O44: RM191,574.37 | R44: =IF(NilaiDimasukkan,IF(R43<1,0,NPER($E$5/12,-$J$3,O44)),"") -> 293
B45: =ROWS($B$19:B45) -> 27 | C45: 2014-11-06 | D45: RM191,574.37 | E45: RM798.23 | F45: RM334.53 | J45: RM375.00 | K45: RM0.00 | L45: RM1,507.75 | O45: RM191,239.84 | R45: =IF(NilaiDimasukkan,IF(R44<1,0,NPER($E$5/12,-$J$3,O45)),"") -> 292
B46: =ROWS($B$19:B46) -> 28 | C46: 2014-12-06 | D46: RM191,239.84 | E46: RM796.83 | F46: RM335.92 | J46: RM375.00 | K46: RM0.00 | L46: RM1,507.75 | O46: RM190,903.92 | R46: =IF(NilaiDimasukkan,IF(R45<1,0,NPER($E$5/12,-$J$3,O46)),"") -> 291
B47: =ROWS($B$19:B47) -> 29 | C47: 2015-01-06 | D47: RM190,903.92 | E47: RM795.43 | F47: RM337.32 | J47: RM375.00 | K47: RM0.00 | L47: RM1,507.75 | O47: RM190,566.60 | R47: =IF(NilaiDimasukkan,IF(R46<1,0,NPER($E$5/12,-$J$3,O47)),"") -> 290
B48: =ROWS($B$19:B48) -> 30 | C48: 2015-02-06 | D48: RM190,566.60 | E48: RM794.03 | F48: RM338.72 | J48: RM375.00 | K48: RM0.00 | L48: RM1,507.75 | O48: RM190,227.88 | R48: =IF(NilaiDimasukkan,IF(R47<1,0,NPER($E$5/12,-$J$3,O48)),"") -> 289
B49: =ROWS($B$19:B49) -> 31 | C49: 2015-03-06 | D49: RM190,227.88 | E49: RM792.62 | F49: RM340.14 | J49: RM375.00 | K49: RM0.00 | L49: RM1,507.75 | O49: RM189,887.74 | R49: =IF(NilaiDimasukkan,IF(R48<1,0,NPER($E$5/12,-$J$3,O49)),"") -> 288
B50: =ROWS($B$19:B50) -> 32 | C50: 2015-04-06 | D50: RM189,887.74 | E50: RM791.20 | F50: RM341.55 | J50: RM375.00 | K50: RM0.00 | L50: RM1,507.75 | O50: RM189,546.19 | R50: =IF(NilaiDimasukkan,IF(R49<1,0,NPER($E$5/12,-$J$3,O50)),"") -> 287
B51: =ROWS($B$19:B51) -> 33 | C51: 2015-05-06 | D51: RM189,546.19 | E51: RM789.78 | F51: RM342.98 | J51: RM375.00 | K51: RM0.00 | L51: RM1,507.75 | O51: RM189,203.21 | R51: =IF(NilaiDimasukkan,IF(R50<1,0,NPER($E$5/12,-$J$3,O51)),"") -> 286
B52: =ROWS($B$19:B52) -> 34 | C52: 2015-06-06 | D52: RM189,203.21 | E52: RM788.35 | F52: RM344.40 | J52: RM375.00 | K52: RM0.00 | L52: RM1,507.75 | O52: RM188,858.81 | R52: =IF(NilaiDimasukkan,IF(R51<1,0,NPER($E$5/12,-$J$3,O52)),"") -> 285
B53: =ROWS($B$19:B53) -> 35 | C53: 2015-07-06 | D53: RM188,858.81 | E53: RM786.91 | F53: RM345.84 | J53: RM375.00 | K53: RM0.00 | L53: RM1,507.75 | O53: RM188,512.97 | R53: =IF(NilaiDimasukkan,IF(R52<1,0,NPER($E$5/12,-$J$3,O53)),"") -> 284
B54: =ROWS($B$19:B54) -> 36 | C54: 2015-08-06 | D54: RM188,512.97 | E54: RM785.47 | F54: RM347.28 | J54: RM375.00 | K54: RM0.00 | L54: RM1,507.75 | O54: RM188,165.69 | R54: =IF(NilaiDimasukkan,IF(R53<1,0,NPER($E$5/12,-$J$3,O54)),"") -> 283
B55: =ROWS($B$19:B55) -> 37 | C55: 2015-09-06 | D55: RM188,165.69 | E55: RM784.02 | F55: RM348.73 | J55: RM375.00 | K55: RM0.00 | L55: RM1,507.75 | O55: RM187,816.96 | R55: =IF(NilaiDimasukkan,IF(R54<1,0,NPER($E$5/12,-$J$3,O55)),"") -> 282
B56: =ROWS($B$19:B56) -> 38 | C56: 2015-10-06 | D56: RM187,816.96 | E56: RM782.57 | F56: RM350.18 | J56: RM375.00 | K56: RM0.00 | L56: RM1,507.75 | O56: RM187,466.78 | R56: =IF(NilaiDimasukkan,IF(R55<1,0,NPER($E$5/12,-$J$3,O56)),"") -> 281
B57: =ROWS($B$19:B57) -> 39 | C57: 2015-11-06 | D57: RM187,466.78 | E57: RM781.11 | F57: RM351.64 | J57: RM375.00 | K57: RM0.00 | L57: RM1,507.75 | O57: RM187,115.14 | R57: =IF(NilaiDimasukkan,IF(R56<1,0,NPER($E$5/12,-$J$3,O57)),"") -> 280
B58: =ROWS($B$19:B58) -> 40 | C58: 2015-12-06 | D58: RM187,115.14 | E58: RM779.65 | F58: RM353.11 | J58: RM375.00 | K58: RM0.00 | L58: RM1,507.75 | O58: RM186,762.03 | R58: =IF(NilaiDimasukkan,IF(R57<1,0,NPER($E$5/12,-$J$3,O58)),"") -> 279
B59: =ROWS($B$19:B59) -> 41 | C59: 2016-01-06 | D59: RM186,762.03 | E59: RM778.18 | F59: RM354.58 | J59: RM375.00 | K59: RM0.00 | L59: RM1,507.75 | O59: RM186,407.46 | R59: =IF(NilaiDimasukkan,IF(R58<1,0,NPER($E$5/12,-$J$3,O59)),"") -> 278
B60: =ROWS($B$19:B60) -> 42 | C60: 2016-02-06 | D60: RM186,407.46 | E60: RM776.70 | F60: RM356.05 | J60: RM375.00 | K60: RM0.00 | L60: RM1,507.75 | O60: RM186,051.40 | R60: =IF(NilaiDimasukkan,IF(R59<1,0,NPER($E$5/12,-$J$3,O60)),"") -> 277
B61: =ROWS($B$19:B61) -> 43 | C61: 2016-03-06 | D61: RM186,051.40 | E61: RM775.21 | F61: RM357.54 | J61: RM375.00 | K61: RM0.00 | L61: RM1,507.75 | O61: RM185,693.87 | R61: =IF(NilaiDimasukkan,IF(R60<1,0,NPER($E$5/12,-$J$3,O61)),"") -> 276
B62: =ROWS($B$19:B62) -> 44 | C62: 2016-04-06 | D62: RM185,693.87 | E62: RM773.72 | F62: RM359.03 | J62: RM375.00 | K62: RM0.00 | L62: RM1,507.75 | O62: RM185,334.84 | R62: =IF(NilaiDimasukkan,IF(R61<1,0,NPER($E$5/12,-$J$3,O62)),"") -> 275
B63: =ROWS($B$19:B63) -> 45 | C63: 2016-05-06 | D63: RM185,334.84 | E63: RM772.23 | F63: RM360.52 | J63: RM375.00 | K63: RM0.00 | L63: RM1,507.75 | O63: RM184,974.32 | R63: =IF(NilaiDimasukkan,IF(R62<1,0,NPER($E$5/12,-$J$3,O63)),"") -> 274
B64: =ROWS($B$19:B64) -> 46 | C64: 2016-06-06 | D64: RM184,974.32 | E64: RM770.73 | F64: RM362.03 | J64: RM375.00 | K64: RM0.00 | L64: RM1,507.75 | O64: RM184,612.29 | R64: =IF(NilaiDimasukkan,IF(R63<1,0,NPER($E$5/12,-$J$3,O64)),"") -> 273
B65: =ROWS($B$19:B65) -> 47 | C65: 2016-07-06 | D65: RM184,612.29 | E65: RM769.22 | F65: RM363.53 | J65: RM375.00 | K65: RM0.00 | L65: RM1,507.75 | O65: RM184,248.76 | R65: =IF(NilaiDimasukkan,IF(R64<1,0,NPER($E$5/12,-$J$3,O65)),"") -> 272
B66: =ROWS($B$19:B66) -> 48 | C66: 2016-08-06 | D66: RM184,248.76 | E66: RM767.70 | F66: RM365.05 | J66: RM375.00 | K66: RM0.00 | L66: RM1,507.75 | O66: RM183,883.71 | R66: =IF(NilaiDimasukkan,IF(R65<1,0,NPER($E$5/12,-$J$3,O66)),"") -> 271
B67: =ROWS($B$19:B67) -> 49 | C67: 2016-09-06 | D67: RM183,883.71 | E67: RM766.18 | F67: RM366.57 | J67: RM375.00 | K67: RM0.00 | L67: RM1,507.75 | O67: RM183,517.14 | R67: =IF(NilaiDimasukkan,IF(R66<1,0,NPER($E$5/12,-$J$3,O67)),"") -> 270
B68: =ROWS($B$19:B68) -> 50 | C68: 2016-10-06 | D68: RM183,517.14 | E68: RM764.65 | F68: RM368.10 | J68: RM375.00 | K68: RM0.00 | L68: RM1,507.75 | O68: RM183,149.04 | R68: =IF(NilaiDimasukkan,IF(R67<1,0,NPER($E$5/12,-$J$3,O68)),"") -> 269
B69: =ROWS($B$19:B69) -> 51 | C69: 2016-11-06 | D69: RM183,149.04 | E69: RM763.12 | F69: RM369.63 | J69: RM375.00 | K69: RM0.00 | L69: RM1,507.75 | O69: RM182,779.41 | R69: =IF(NilaiDimasukkan,IF(R68<1,0,NPER($E$5/12,-$J$3,O69)),"") -> 268
B70: =ROWS($B$19:B70) -> 52 | C70: 2016-12-06 | D70: RM182,779.41 | E70: RM761.58 | F70: RM371.17 | J70: RM375.00 | K70: RM0.00 | L70: RM1,507.75 | O70: RM182,408.24 | R70: =IF(NilaiDimasukkan,IF(R69<1,0,NPER($E$5/12,-$J$3,O70)),"") -> 267
B71: =ROWS($B$19:B71) -> 53 | C71: 2017-01-06 | D71: RM182,408.24 | E71: RM760.03 | F71: RM372.72 | J71: RM375.00 | K71: RM0.00 | L71: RM1,507.75 | O71: RM182,035.52 | R71: =IF(NilaiDimasukkan,IF(R70<1,0,NPER($E$5/12,-$J$3,O71)),"") -> 266
B72: =ROWS($B$19:B72) -> 54 | C72: 2017-02-06 | D72: RM182,035.52 | E72: RM758.48 | F72: RM374.27 | J72: RM375.00 | K72: RM0.00 | L72: RM1,507.75 | O72: RM181,661.25 | R72: =IF(NilaiDimasukkan,IF(R71<1,0,NPER($E$5/12,-$J$3,O72)),"") -> 265
B73: =ROWS($B$19:B73) -> 55 | C73: 2017-03-06 | D73: RM181,661.25 | E73: RM756.92 | F73: RM375.83 | J73: RM375.00 | K73: RM0.00 | L73: RM1,507.75 | O73: RM181,285.42 | R73: =IF(NilaiDimasukkan,IF(R72<1,0,NPER($E$5/12,-$J$3,O73)),"") -> 264
B74: =ROWS($B$19:B74) -> 56 | C74: 2017-04-06 | D74: RM181,285.42 | E74: RM755.36 | F74: RM377.40 | J74: RM375.00 | K74: RM0.00 | L74: RM1,507.75 | O74: RM180,908.03 | R74: =IF(NilaiDimasukkan,IF(R73<1,0,NPER($E$5/12,-$J$3,O74)),"") -> 263
B75: =ROWS($B$19:B75) -> 57 | C75: 2017-05-06 | D75: RM180,908.03 | E75: RM753.78 | F75: RM378.97 | J75: RM375.00 | K75: RM0.00 | L75: RM1,507.75 | O75: RM180,529.06 | R75: =IF(NilaiDimasukkan,IF(R74<1,0,NPER($E$5/12,-$J$3,O75)),"") -> 262
B76: =ROWS($B$19:B76) -> 58 | C76: 2017-06-06 | D76: RM180,529.06 | E76: RM752.20 | F76: RM380.55 | J76: RM375.00 | K76: RM0.00 | L76: RM1,507.75 | O76: RM180,148.51 | R76: =IF(NilaiDimasukkan,IF(R75<1,0,NPER($E$5/12,-$J$3,O76)),"") -> 261
B77: =ROWS($B$19:B77) -> 59 | C77: 2017-07-06 | D77: RM180,148.51 | E77: RM750.62 | F77: RM382.13 | J77: RM375.00 | K77: RM0.00 | L77: RM1,507.75 | O77: RM179,766.38 | R77: =IF(NilaiDimasukkan,IF(R76<1,0,NPER($E$5/12,-$J$3,O77)),"") -> 260
B78: =ROWS($B$19:B78) -> 60 | C78: 2017-08-06 | D78: RM179,766.38 | E78: RM749.03 | F78: RM383.73 | J78: RM375.00 | K78: RM0.00 | L78: RM1,507.75 | O78: RM179,382.65 | R78: =IF(NilaiDimasukkan,IF(R77<1,0,NPER($E$5/12,-$J$3,O78)),"") -> 259
B79: =ROWS($B$19:B79) -> 61 | C79: 2017-09-06 | D79: RM179,382.65 | E79: RM747.43 | F79: RM385.32 | J79: RM375.00 | K79: RM0.00 | L79: RM1,507.75 | O79: RM178,997.33 | R79: =IF(NilaiDimasukkan,IF(R78<1,0,NPER($E$5/12,-$J$3,O79)),"") -> 258
B80: =ROWS($B$19:B80) -> 62 | C80: 2017-10-06 | D80: RM178,997.33 | E80: RM745.82 | F80: RM386.93 | J80: RM375.00 | K80: RM0.00 | L80: RM1,507.75 | O80: RM178,610.40 | R80: =IF(NilaiDimasukkan,IF(R79<1,0,NPER($E$5/12,-$J$3,O80)),"") -> 257
B81: =ROWS($B$19:B81) -> 63 | C81: 2017-11-06 | D81: RM178,610.40 | E81: RM744.21 | F81: RM388.54 | J81: RM375.00 | K81: RM0.00 | L81: RM1,507.75 | O81: RM178,221.86 | R81: =IF(NilaiDimasukkan,IF(R80<1,0,NPER($E$5/12,-$J$3,O81)),"") -> 256
B82: =ROWS($B$19:B82) -> 64 | C82: 2017-12-06 | D82: RM178,221.86 | E82: RM742.59 | F82: RM390.16 | J82: RM375.00 | K82: RM0.00 | L82: RM1,507.75 | O82: RM177,831.70 | R82: =IF(NilaiDimasukkan,IF(R81<1,0,NPER($E$5/12,-$J$3,O82)),"") -> 255
B83: =ROWS($B$19:B83) -> 65 | C83: 2018-01-06 | D83: RM177,831.70 | E83: RM740.97 | F83: RM391.79 | J83: RM375.00 | K83: RM0.00 | L83: RM1,507.75 | O83: RM177,439.91 | R83: =IF(NilaiDimasukkan,IF(R82<1,0,NPER($E$5/12,-$J$3,O83)),"") -> 254
B84: =ROWS($B$19:B84) -> 66 | C84: =IF(O83>0,EDATE(C83,1),"") -> 2018-02-06 | D84: =IF(C84="",0,O83) -> RM177,439.91 | E84: =IFERROR(-IPMT($E$5/12,1,R83,D84),0) -> RM739.33 | F84: =IFERROR(-PPMT($E$5/12,1,R83,D84),0) -> RM393.42 | J84: =IF(C84="",0,$R$7) -> RM375.00 | K84: =IF(C84="",0,IF(D84<0.8*$E$3,0,$P$11)) -> RM0.00 | L84: =IF(C84="",0,E84+F84+I84+J84+K84) -> RM1,507.75 | O84: =IF(C84="",0,D84-F84-I84) -> RM177,046.49 | R84: =IF(NilaiDimasukkan,IF(R83<1,0,NPER($E$5/12,-$J$3,O84)),"") -> 253
B85: =ROWS($B$19:B85) -> 67 | C85: 2018-03-06 | D85: RM177,046.49 | E85: RM737.69 | F85: RM395.06 | J85: RM375.00 | K85: RM0.00 | L85: RM1,507.75 | O85: RM176,651.43 | R85: =IF(NilaiDimasukkan,IF(R84<1,0,NPER($E$5/12,-$J$3,O85)),"") -> 252
B86: =ROWS($B$19:B86) -> 68 | C86: 2018-04-06 | D86: RM176,651.43 | E86: RM736.05 | F86: RM396.70 | J86: RM375.00 | K86: RM0.00 | L86: RM1,507.75 | O86: RM176,254.73 | R86: =IF(NilaiDimasukkan,IF(R85<1,0,NPER($E$5/12,-$J$3,O86)),"") -> 251
B87: =ROWS($B$19:B87) -> 69 | C87: 2018-05-06 | D87: RM176,254.73 | E87: RM734.39 | F87: RM398.36 | J87: RM375.00 | K87: RM0.00 | L87: RM1,507.75 | O87: RM175,856.37 | R87: =IF(NilaiDimasukkan,IF(R86<1,0,NPER($E$5/12,-$J$3,O87)),"") -> 250
B88: =ROWS($B$19:B88) -> 70 | C88: 2018-06-06 | D88: RM175,856.37 | E88: RM732.73 | F88: RM400.02 | J88: RM375.00 | K88: RM0.00 | L88: RM1,507.75 | O88: RM175,456.36 | R88: =IF(NilaiDimasukkan,IF(R87<1,0,NPER($E$5/12,-$J$3,O88)),"") -> 249
B89: =ROWS($B$19:B89) -> 71 | C89: 2018-07-06 | D89: RM175,456.36 | E89: RM731.07 | F89: RM401.68 | J89: RM375.00 | K89: RM0.00 | L89: RM1,507.75 | O89: RM175,054.67 | R89: =IF(NilaiDimasukkan,IF(R88<1,0,NPER($E$5/12,-$J$3,O89)),"") -> 248
B90: =ROWS($B$19:B90) -> 72 | C90: 2018-08-06 | D90: RM175,054.67 | E90: RM729.39 | F90: RM403.36 | J90: RM375.00 | K90: RM0.00 | L90: RM1,507.75 | O90: RM174,651.32 | R90: =IF(NilaiDimasukkan,IF(R89<1,0,NPER($E$5/12,-$J$3,O90)),"") -> 247
B91: =ROWS($B$19:B91) -> 73 | C91: 2018-09-06 | D91: RM174,651.32 | E91: RM727.71 | F91: RM405.04 | J91: RM375.00 | K91: RM0.00 | L91: RM1,507.75 | O91: RM174,246.28 | R91: =IF(NilaiDimasukkan,IF(R90<1,0,NPER($E$5/12,-$J$3,O91)),"") -> 246
B92: =ROWS($B$19:B92) -> 74 | C92: 2018-10-06 | D92: RM174,246.28 | E92: RM726.03 | F92: RM406.73 | J92: RM375.00 | K92: RM0.00 | L92: RM1,507.75 | O92: RM173,839.55 | R92: =IF(NilaiDimasukkan,IF(R91<1,0,NPER($E$5/12,-$J$3,O92)),"") -> 245
B93: =ROWS($B$19:B93) -> 75 | C93: 2018-11-06 | D93: RM173,839.55 | E93: RM724.33 | F93: RM408.42 | J93: RM375.00 | K93: RM0.00 | L93: RM1,507.75 | O93: RM173,431.13 | R93: =IF(NilaiDimasukkan,IF(R92<1,0,NPER($E$5/12,-$J$3,O93)),"") -> 244
B94: =ROWS($B$19:B94) -> 76 | C94: 2018-12-06 | D94: RM173,431.13 | E94: RM722.63 | F94: RM410.12 | J94: RM375.00 | K94: RM0.00 | L94: RM1,507.75 | O94: RM173,021.01 | R94: =IF(NilaiDimasukkan,IF(R93<1,0,NPER($E$5/12,-$J$3,O94)),"") -> 243
B95: =ROWS($B$19:B95) -> 77 | C95: 2019-01-06 | D95: RM173,021.01 | E95: RM720.92 | F95: RM411.83 | J95: RM375.00 | K95: RM0.00 | L95: RM1,507.75 | O95: RM172,609.18 | R95: =IF(NilaiDimasukkan,IF(R94<1,0,NPER($E$5/12,-$J$3,O95)),"") -> 242
B96: =ROWS($B$19:B96) -> 78 | C96: 2019-02-06 | D96: RM172,609.18 | E96: RM719.20 | F96: RM413.55 | J96: RM375.00 | K96: RM0.00 | L96: RM1,507.75 | O96: RM172,195.63 | R96: =IF(NilaiDimasukkan,IF(R95<1,0,NPER($E$5/12,-$J$3,O96)),"") -> 241
B97: =ROWS($B$19:B97) -> 79 | C97: 2019-03-06 | D97: RM172,195.63 | E97: RM717.48 | F97: RM415.27 | J97: RM375.00 | K97: RM0.00 | L97: RM1,507.75 | O97: RM171,780.36 | R97: =IF(NilaiDimasukkan,IF(R96<1,0,NPER($E$5/12,-$J$3,O97)),"") -> 240
B98: =ROWS($B$19:B98) -> 80 | C98: 2019-04-06 | D98: RM171,780.36 | E98: RM715.75 | F98: RM417.00 | J98: RM375.00 | K98: RM0.00 | L98: RM1,507.75 | O98: RM171,363.36 | R98: =IF(NilaiDimasukkan,IF(R97<1,0,NPER($E$5/12,-$J$3,O98)),"") -> 239
B99: =ROWS($B$19:B99) -> 81 | C99: 2019-05-06 | D99: RM171,363.36 | E99: RM714.01 | F99: RM418.74 | J99: RM375.00 | K99: RM0.00 | L99: RM1,507.75 | O99: RM170,944.62 | R99: =IF(NilaiDimasukkan,IF(R98<1,0,NPER($E$5/12,-$J$3,O99)),"") -> 238
B100: =ROWS($B$19:B100) -> 82 | C100: 2019-06-06 | D100: RM170,944.62 | E100: RM712.27 | F100: RM420.48 | J100: RM375.00 | K100: RM0.00 | L100: RM1,507.75 | O100: RM170,524.14 | R100: =IF(NilaiDimasukkan,IF(R99<1,0,NPER($E$5/12,-$J$3,O100)),"") -> 237
B101: =ROWS($B$19:B101) -> 83 | C101: 2019-07-06 | D101: RM170,524.14 | E101: RM710.52 | F101: RM422.23 | J101: RM375.00 | K101: RM0.00 | L101: RM1,507.75 | O101: RM170,101.91 | R101: =IF(NilaiDimasukkan,IF(R100<1,0,NPER($E$5/12,-$J$3,O101)),"") -> 236
B102: =ROWS($B$19:B102) -> 84 | C102: 2019-08-06 | D102: RM170,101.91 | E102: RM708.76 | F102: RM423.99 | J102: RM375.00 | K102: RM0.00 | L102: RM1,507.75 | O102: RM169,677.91 | R102: =IF(NilaiDimasukkan,IF(R101<1,0,NPER($E$5/12,-$J$3,O102)),"") -> 235
B103: =ROWS($B$19:B103) -> 85 | C103: 2019-09-06 | D103: RM169,677.91 | E103: RM706.99 | F103: RM425.76 | J103: RM375.00 | K103: RM0.00 | L103: RM1,507.75 | O103: RM169,252.15 | R103: =IF(NilaiDimasukkan,IF(R102<1,0,NPER($E$5/12,-$J$3,O103)),"") -> 234
B104: =ROWS($B$19:B104) -> 86 | C104: 2019-10-06 | D104: RM169,252.15 | E104: RM705.22 | F104: RM427.53 | J104: RM375.00 | K104: RM0.00 | L104: RM1,507.75 | O104: RM168,824.62 | R104: =IF(NilaiDimasukkan,IF(R103<1,0,NPER($E$5/12,-$J$3,O104)),"") -> 233
B105: =ROWS($B$19:B105) -> 87 | C105: 2019-11-06 | D105: RM168,824.62 | E105: RM703.44 | F105: RM429.32 | J105: RM375.00 | K105: RM0.00 | L105: RM1,507.75 | O105: RM168,395.30 | R105: =IF(NilaiDimasukkan,IF(R104<1,0,NPER($E$5/12,-$J$3,O105)),"") -> 232
B106: =ROWS($B$19:B106) -> 88 | C106: 2019-12-06 | D106: RM168,395.30 | E106: RM701.65 | F106: RM431.10 | J106: RM375.00 | K106: RM0.00 | L106: RM1,507.75 | O106: RM167,964.20 | R106: =IF(NilaiDimasukkan,IF(R105<1,0,NPER($E$5/12,-$J$3,O106)),"") -> 231
B107: =ROWS($B$19:B107) -> 89 | C107: 2020-01-06 | D107: RM167,964.20 | E107: RM699.85 | F107: RM432.90 | J107: RM375.00 | K107: RM0.00 | L107: RM1,507.75 | O107: RM167,531.30 | R107: =IF(NilaiDimasukkan,IF(R106<1,0,NPER($E$5/12,-$J$3,O107)),"") -> 230
B108: =ROWS($B$19:B108) -> 90 | C108: 2020-02-06 | D108: RM167,531.30 | E108: RM698.05 | F108: RM434.70 | J108: RM375.00 | K108: RM0.00 | L108: RM1,507.75 | O108: RM167,096.59 | R108: =IF(NilaiDimasukkan,IF(R107<1,0,NPER($E$5/12,-$J$3,O108)),"") -> 229
B109: =ROWS($B$19:B109) -> 91 | C109: 2020-03-06 | D109: RM167,096.59 | E109: RM696.24 | F109: RM436.52 | J109: RM375.00 | K109: RM0.00 | L109: RM1,507.75 | O109: RM166,660.08 | R109: =IF(NilaiDimasukkan,IF(R108<1,0,NPER($E$5/12,-$J$3,O109)),"") -> 228
B110: =ROWS($B$19:B110) -> 92 | C110: 2020-04-06 | D110: RM166,660.08 | E110: RM694.42 | F110: RM438.33 | J110: RM375.00 | K110: RM0.00 | L110: RM1,507.75 | O110: RM166,221.74 | R110: =IF(NilaiDimasukkan,IF(R109<1,0,NPER($E$5/12,-$J$3,O110)),"") -> 227
B111: =ROWS($B$19:B111) -> 93 | C111: 2020-05-06 | D111: RM166,221.74 | E111: RM692.59 | F111: RM440.16 | J111: RM375.00 | K111: RM0.00 | L111: RM1,507.75 | O111: RM165,781.58 | R111: =IF(NilaiDimasukkan,IF(R110<1,0,NPER($E$5/12,-$J$3,O111)),"") -> 226
B112: =ROWS($B$19:B112) -> 94 | C112: 2020-06-06 | D112: RM165,781.58 | E112: RM690.76 | F112: RM442.00 | J112: RM375.00 | K112: RM0.00 | L112: RM1,507.75 | O112: RM165,339.59 | R112: =IF(NilaiDimasukkan,IF(R111<1,0,NPER($E$5/12,-$J$3,O112)),"") -> 225
B113: =ROWS($B$19:B113) -> 95 | C113: 2020-07-06 | D113: RM165,339.59 | E113: RM688.91 | F113: RM443.84 | J113: RM375.00 | K113: RM0.00 | L113: RM1,507.75 | O113: RM164,895.75 | R113: =IF(NilaiDimasukkan,IF(R112<1,0,NPER($E$5/12,-$J$3,O113)),"") -> 224
B114: =ROWS($B$19:B114) -> 96 | C114: 2020-08-06 | D114: RM164,895.75 | E114: RM687.07 | F114: RM445.69 | J114: RM375.00 | K114: RM0.00 | L114: RM1,507.75 | O114: RM164,450.06 | R114: =IF(NilaiDimasukkan,IF(R113<1,0,NPER($E$5/12,-$J$3,O114)),"") -> 223
B115: =ROWS($B$19:B115) -> 97 | C115: 2020-09-06 | D115: RM164,450.06 | E115: RM685.21 | F115: RM447.54 | J115: RM375.00 | K115: RM0.00 | L115: RM1,507.75 | O115: RM164,002.52 | R115: =IF(NilaiDimasukkan,IF(R114<1,0,NPER($E$5/12,-$J$3,O115)),"") -> 222
B116: =ROWS($B$19:B116) -> 98 | C116: 2020-10-06 | D116: RM164,002.52 | E116: RM683.34 | F116: RM449.41 | J116: RM375.00 | K116: RM0.00 | L116: RM1,507.75 | O116: RM163,553.11 | R116: =IF(NilaiDimasukkan,IF(R115<1,0,NPER($E$5/12,-$J$3,O116)),"") -> 221
B117: =ROWS($B$19:B117) -> 99 | C117: 2020-11-06 | D117: RM163,553.11 | E117: RM681.47 | F117: RM451.28 | J117: RM375.00 | K117: RM0.00 | L117: RM1,507.75 | O117: RM163,101.83 | R117: =IF(NilaiDimasukkan,IF(R116<1,0,NPER($E$5/12,-$J$3,O117)),"") -> 220
B118: =ROWS($B$19:B118) -> 100 | C118: 2020-12-06 | D118: RM163,101.83 | E118: RM679.59 | F118: RM453.16 | J118: RM375.00 | K118: RM0.00 | L118: RM1,507.75 | O118: RM162,648.67 | R118: =IF(NilaiDimasukkan,IF(R117<1,0,NPER($E$5/12,-$J$3,O118)),"") -> 219
B119: =ROWS($B$19:B119) -> 101 | C119: 2021-01-06 | D119: RM162,648.67 | E119: RM677.70 | F119: RM455.05 | J119: RM375.00 | K119: RM0.00 | L119: RM1,507.75 | O119: RM162,193.62 | R119: =IF(NilaiDimasukkan,IF(R118<1,0,NPER($E$5/12,-$J$3,O119)),"") -> 218
B120: =ROWS($B$19:B120) -> 102 | C120: 2021-02-06 | D120: RM162,193.62 | E120: RM675.81 | F120: RM456.94 | J120: RM375.00 | K120: RM0.00 | L120: RM1,507.75 | O120: RM161,736.68 | R120: =IF(NilaiDimasukkan,IF(R119<1,0,NPER($E$5/12,-$J$3,O120)),"") -> 217
B121: =ROWS($B$19:B121) -> 103 | C121: 2021-03-06 | D121: RM161,736.68 | E121: RM673.90 | F121: RM458.85 | J121: RM375.00 | K121: RM0.00 | L121: RM1,507.75 | O121: RM161,277.83 | R121: =IF(NilaiDimasukkan,IF(R120<1,0,NPER($E$5/12,-$J$3,O121)),"") -> 216
B122: =ROWS($B$19:B122) -> 104 | C122: 2021-04-06 | D122: RM161,277.83 | E122: RM671.99 | F122: RM460.76 | J122: RM375.00 | K122: RM0.00 | L122: RM1,507.75 | O122: RM160,817.07 | R122: =IF(NilaiDimasukkan,IF(R121<1,0,NPER($E$5/12,-$J$3,O122)),"") -> 215
B123: =ROWS($B$19:B123) -> 105 | C123: 2021-05-06 | D123: RM160,817.07 | E123: RM670.07 | F123: RM462.68 | J123: RM375.00 | K123: RM0.00 | L123: RM1,507.75 | O123: RM160,354.39 | R123: =IF(NilaiDimasukkan,IF(R122<1,0,NPER($E$5/12,-$J$3,O123)),"") -> 214
B124: =ROWS($B$19:B124) -> 106 | C124: 2021-06-06 | D124: RM160,354.39 | E124: RM668.14 | F124: RM464.61 | J124: RM375.00 | K124: RM0.00 | L124: RM1,507.75 | O124: RM159,889.78 | R124: =IF(NilaiDimasukkan,IF(R123<1,0,NPER($E$5/12,-$J$3,O124)),"") -> 213
B125: =ROWS($B$19:B125) -> 107 | C125: 2021-07-06 | D125: RM159,889.78 | E125: RM666.21 | F125: RM466.54 | J125: RM375.00 | K125: RM0.00 | L125: RM1,507.75 | O125: RM159,423.23 | R125: =IF(NilaiDimasukkan,IF(R124<1,0,NPER($E$5/12,-$J$3,O125)),"") -> 212
B126: =ROWS($B$19:B126) -> 108 | C126: 2021-08-06 | D126: RM159,423.23 | E126: RM664.26 | F126: RM468.49 | J126: RM375.00 | K126: RM0.00 | L126: RM1,507.75 | O126: RM158,954.75 | R126: =IF(NilaiDimasukkan,IF(R125<1,0,NPER($E$5/12,-$J$3,O126)),"") -> 211
B127: =ROWS($B$19:B127) -> 109 | C127: 2021-09-06 | D127: RM158,954.75 | E127: RM662.31 | F127: RM470.44 | J127: RM375.00 | K127: RM0.00 | L127: RM1,507.75 | O127: RM158,484.31 | R127: =IF(NilaiDimasukkan,IF(R126<1,0,NPER($E$5/12,-$J$3,O127)),"") -> 210
B128: =ROWS($B$19:B128) -> 110 | C128: 2021-10-06 | D128: RM158,484.31 | E128: RM660.35 | F128: RM472.40 | J128: RM375.00 | K128: RM0.00 | L128: RM1,507.75 | O128: RM158,011.90 | R128: =IF(NilaiDimasukkan,IF(R127<1,0,NPER($E$5/12,-$J$3,O128)),"") -> 209
B129: =ROWS($B$19:B129) -> 111 | C129: 2021-11-06 | D129: RM158,011.90 | E129: RM658.38 | F129: RM474.37 | J129: RM375.00 | K129: RM0.00 | L129: RM1,507.75 | O129: RM157,537.54 | R129: =IF(NilaiDimasukkan,IF(R128<1,0,NPER($E$5/12,-$J$3,O129)),"") -> 208
B130: =ROWS($B$19:B130) -> 112 | C130: 2021-12-06 | D130: RM157,537.54 | E130: RM656.41 | F130: RM476.35 | J130: RM375.00 | K130: RM0.00 | L130: RM1,507.75 | O130: RM157,061.19 | R130: =IF(NilaiDimasukkan,IF(R129<1,0,NPER($E$5/12,-$J$3,O130)),"") -> 207
B131: =ROWS($B$19:B131) -> 113 | C131: 2022-01-06 | D131: RM157,061.19 | E131: RM654.42 | F131: RM478.33 | J131: RM375.00 | K131: RM0.00 | L131: RM1,507.75 | O131: RM156,582.86 | R131: =IF(NilaiDimasukkan,IF(R130<1,0,NPER($E$5/12,-$J$3,O131)),"") -> 206
B132: =ROWS($B$19:B132) -> 114 | C132: 2022-02-06 | D132: RM156,582.86 | E132: RM652.43 | F132: RM480.32 | J132: RM375.00 | K132: RM0.00 | L132: RM1,507.75 | O132: RM156,102.54 | R132: =IF(NilaiDimasukkan,IF(R131<1,0,NPER($E$5/12,-$J$3,O132)),"") -> 205
B133: =ROWS($B$19:B133) -> 115 | C133: 2022-03-06 | D133: RM156,102.54 | E133: RM650.43 | F133: RM482.32 | J133: RM375.00 | K133: RM0.00 | L133: RM1,507.75 | O133: RM155,620.21 | R133: =IF(NilaiDimasukkan,IF(R132<1,0,NPER($E$5/12,-$J$3,O133)),"") -> 204
B134: =ROWS($B$19:B134) -> 116 | C134: 2022-04-06 | D134: RM155,620.21 | E134: RM648.42 | F134: RM484.33 | J134: RM375.00 | K134: RM0.00 | L134: RM1,507.75 | O134: RM155,135.88 | R134: =IF(NilaiDimasukkan,IF(R133<1,0,NPER($E$5/12,-$J$3,O134)),"") -> 203
B135: =ROWS($B$19:B135) -> 117 | C135: 2022-05-06 | D135: RM155,135.88 | E135: RM646.40 | F135: RM486.35 | J135: RM375.00 | K135: RM0.00 | L135: RM1,507.75 | O135: RM154,649.53 | R135: =IF(NilaiDimasukkan,IF(R134<1,0,NPER($E$5/12,-$J$3,O135)),"") -> 202
B136: =ROWS($B$19:B136) -> 118 | C136: 2022-06-06 | D136: RM154,649.53 | E136: RM644.37 | F136: RM488.38 | J136: RM375.00 | K136: RM0.00 | L136: RM1,507.75 | O136: RM154,161.15 | R136: =IF(NilaiDimasukkan,IF(R135<1,0,NPER($E$5/12,-$J$3,O136)),"") -> 201
B137: =ROWS($B$19:B137) -> 119 | C137: 2022-07-06 | D137: RM154,161.15 | E137: RM642.34 | F137: RM490.41 | J137: RM375.00 | K137: RM0.00 | L137: RM1,507.75 | O137: RM153,670.73 | R137: =IF(NilaiDimasukkan,IF(R136<1,0,NPER($E$5/12,-$J$3,O137)),"") -> 200
B138: =ROWS($B$19:B138) -> 120 | C138: 2022-08-06 | D138: RM153,670.73 | E138: RM640.29 | F138: RM492.46 | J138: RM375.00 | K138: RM0.00 | L138: RM1,507.75 | O138: RM153,178.28 | R138: =IF(NilaiDimasukkan,IF(R137<1,0,NPER($E$5/12,-$J$3,O138)),"") -> 199
B139: =ROWS($B$19:B139) -> 121 | C139: 2022-09-06 | D139: RM153,178.28 | E139: RM638.24 | F139: RM494.51 | J139: RM375.00 | K139: RM0.00 | L139: RM1,507.75 | O139: RM152,683.77 | R139: =IF(NilaiDimasukkan,IF(R138<1,0,NPER($E$5/12,-$J$3,O139)),"") -> 198
B140: =ROWS($B$19:B140) -> 122 | C140: 2022-10-06 | D140: RM152,683.77 | E140: RM636.18 | F140: RM496.57 | J140: RM375.00 | K140: RM0.00 | L140: RM1,507.75 | O140: RM152,187.20 | R140: =IF(NilaiDimasukkan,IF(R139<1,0,NPER($E$5/12,-$J$3,O140)),"") -> 197
B141: =ROWS($B$19:B141) -> 123 | C141: 2022-11-06 | D141: RM152,187.20 | E141: RM634.11 | F141: RM498.64 | J141: RM375.00 | K141: RM0.00 | L141: RM1,507.75 | O141: RM151,688.56 | R141: =IF(NilaiDimasukkan,IF(R140<1,0,NPER($E$5/12,-$J$3,O141)),"") -> 196
B142: =ROWS($B$19:B142) -> 124 | C142: 2022-12-06 | D142: RM151,688.56 | E142: RM632.04 | F142: RM500.72 | J142: RM375.00 | K142: RM0.00 | L142: RM1,507.75 | O142: RM151,187.84 | R142: =IF(NilaiDimasukkan,IF(R141<1,0,NPER($E$5/12,-$J$3,O142)),"") -> 195
B143: =ROWS($B$19:B143) -> 125 | C143: 2023-01-06 | D143: RM151,187.84 | E143: RM629.95 | F143: RM502.80 | J143: RM375.00 | K143: RM0.00 | L143: RM1,507.75 | O143: RM150,685.04 | R143: =IF(NilaiDimasukkan,IF(R142<1,0,NPER($E$5/12,-$J$3,O143)),"") -> 194
B144: =ROWS($B$19:B144) -> 126 | C144: 2023-02-06 | D144: RM150,685.04 | E144: RM627.85 | F144: RM504.90 | J144: RM375.00 | K144: RM0.00 | L144: RM1,507.75 | O144: RM150,180.15 | R144: =IF(NilaiDimasukkan,IF(R143<1,0,NPER($E$5/12,-$J$3,O144)),"") -> 193
B145: =ROWS($B$19:B145) -> 127 | C145: 2023-03-06 | D145: RM150,180.15 | E145: RM625.75 | F145: RM507.00 | J145: RM375.00 | K145: RM0.00 | L145: RM1,507.75 | O145: RM149,673.14 | R145: =IF(NilaiDimasukkan,IF(R144<1,0,NPER($E$5/12,-$J$3,O145)),"") -> 192
B146: =ROWS($B$19:B146) -> 128 | C146: 2023-04-06 | D146: RM149,673.14 | E146: RM623.64 | F146: RM509.11 | J146: RM375.00 | K146: RM0.00 | L146: RM1,507.75 | O146: RM149,164.03 | R146: =IF(NilaiDimasukkan,IF(R145<1,0,NPER($E$5/12,-$J$3,O146)),"") -> 191
B147: =ROWS($B$19:B147) -> 129 | C147: 2023-05-06 | D147: RM149,164.03 | E147: RM621.52 | F147: RM511.23 | J147: RM375.00 | K147: RM0.00 | L147: RM1,507.75 | O147: RM148,652.80 | R147: =IF(NilaiDimasukkan,IF(R146<1,0,NPER($E$5/12,-$J$3,O147)),"") -> 190
B148: =ROWS($B$19:B148) -> 130 | C148: =IF(O147>0,EDATE(C147,1),"") -> 2023-06-06 | D148: =IF(C148="",0,O147) -> RM148,652.80 | E148: =IFERROR(-IPMT($E$5/12,1,R147,D148),0) -> RM619.39 | F148: =IFERROR(-PPMT($E$5/12,1,R147,D148),0) -> RM513.37 | J148: =IF(C148="",0,$R$7) -> RM375.00 | K148: =IF(C148="",0,IF(D148<0.8*$E$3,0,$P$11)) -> RM0.00 | L148: =IF(C148="",0,E148+F148+I148+J148+K148) -> RM1,507.75 | O148: =IF(C148="",0,D148-F148-I148) -> RM148,139.43 | R148: =IF(NilaiDimasukkan,IF(R147<1,0,NPER($E$5/12,-$J$3,O148)),"") -> 189
B149: =ROWS($B$19:B149) -> 131 | C149: 2023-07-06 | D149: RM148,139.43 | E149: RM617.25 | F149: RM515.50 | J149: RM375.00 | K149: RM0.00 | L149: RM1,507.75 | O149: RM147,623.93 | R149: =IF(NilaiDimasukkan,IF(R148<1,0,NPER($E$5/12,-$J$3,O149)),"") -> 188
B150: =ROWS($B$19:B150) -> 132 | C150: 2023-08-06 | D150: RM147,623.93 | E150: RM615.10 | F150: RM517.65 | J150: RM375.00 | K150: RM0.00 | L150: RM1,507.75 | O150: RM147,106.27 | R150: =IF(NilaiDimasukkan,IF(R149<1,0,NPER($E$5/12,-$J$3,O150)),"") -> 187
B151: =ROWS($B$19:B151) -> 133 | C151: 2023-09-06 | D151: RM147,106.27 | E151: RM612.94 | F151: RM519.81 | J151: RM375.00 | K151: RM0.00 | L151: RM1,507.75 | O151: RM146,586.47 | R151: =IF(NilaiDimasukkan,IF(R150<1,0,NPER($E$5/12,-$J$3,O151)),"") -> 186
B152: =ROWS($B$19:B152) -> 134 | C152: 2023-10-06 | D152: RM146,586.47 | E152: RM610.78 | F152: RM521.97 | J152: RM375.00 | K152: RM0.00 | L152: RM1,507.75 | O152: RM146,064.49 | R152: =IF(NilaiDimasukkan,IF(R151<1,0,NPER($E$5/12,-$J$3,O152)),"") -> 185
B153: =ROWS($B$19:B153) -> 135 | C153: 2023-11-06 | D153: RM146,064.49 | E153: RM608.60 | F153: RM524.15 | J153: RM375.00 | K153: RM0.00 | L153: RM1,507.75 | O153: RM145,540.34 | R153: =IF(NilaiDimasukkan,IF(R152<1,0,NPER($E$5/12,-$J$3,O153)),"") -> 184
B154: =ROWS($B$19:B154) -> 136 | C154: 2023-12-06 | D154: RM145,540.34 | E154: RM606.42 | F154: RM526.33 | J154: RM375.00 | K154: RM0.00 | L154: RM1,507.75 | O154: RM145,014.01 | R154: =IF(NilaiDimasukkan,IF(R153<1,0,NPER($E$5/12,-$J$3,O154)),"") -> 183
B155: =ROWS($B$19:B155) -> 137 | C155: 2024-01-06 | D155: RM145,014.01 | E155: RM604.23 | F155: RM528.53 | J155: RM375.00 | K155: RM0.00 | L155: RM1,507.75 | O155: RM144,485.48 | R155: =IF(NilaiDimasukkan,IF(R154<1,0,NPER($E$5/12,-$J$3,O155)),"") -> 182
B156: =ROWS($B$19:B156) -> 138 | C156: 2024-02-06 | D156: RM144,485.48 | E156: RM602.02 | F156: RM530.73 | J156: RM375.00 | K156: RM0.00 | L156: RM1,507.75 | O156: RM143,954.75 | R156: =IF(NilaiDimasukkan,IF(R155<1,0,NPER($E$5/12,-$J$3,O156)),"") -> 181
B157: =ROWS($B$19:B157) -> 139 | C157: 2024-03-06 | D157: RM143,954.75 | E157: RM599.81 | F157: RM532.94 | J157: RM375.00 | K157: RM0.00 | L157: RM1,507.75 | O157: RM143,421.81 | R157: =IF(NilaiDimasukkan,IF(R156<1,0,NPER($E$5/12,-$J$3,O157)),"") -> 180
B158: =ROWS($B$19:B158) -> 140 | C158: 2024-04-06 | D158: RM143,421.81 | E158: RM597.59 | F158: RM535.16 | J158: RM375.00 | K158: RM0.00 | L158: RM1,507.75 | O158: RM142,886.65 | R158: =IF(NilaiDimasukkan,IF(R157<1,0,NPER($E$5/12,-$J$3,O158)),"") -> 179
B159: =ROWS($B$19:B159) -> 141 | C159: 2024-05-06 | D159: RM142,886.65 | E159: RM595.36 | F159: RM537.39 | J159: RM375.00 | K159: RM0.00 | L159: RM1,507.75 | O159: RM142,349.26 | R159: =IF(NilaiDimasukkan,IF(R158<1,0,NPER($E$5/12,-$J$3,O159)),"") -> 178
B160: =ROWS($B$19:B160) -> 142 | C160: 2024-06-06 | D160: RM142,349.26 | E160: RM593.12 | F160: RM539.63 | J160: RM375.00 | K160: RM0.00 | L160: RM1,507.75 | O160: RM141,809.63 | R160: =IF(NilaiDimasukkan,IF(R159<1,0,NPER($E$5/12,-$J$3,O160)),"") -> 177
B161: =ROWS($B$19:B161) -> 143 | C161: 2024-07-06 | D161: RM141,809.63 | E161: RM590.87 | F161: RM541.88 | J161: RM375.00 | K161: RM0.00 | L161: RM1,507.75 | O161: RM141,267.75 | R161: =IF(NilaiDimasukkan,IF(R160<1,0,NPER($E$5/12,-$J$3,O161)),"") -> 176
B162: =ROWS($B$19:B162) -> 144 | C162: 2024-08-06 | D162: RM141,267.75 | E162: RM588.62 | F162: RM544.14 | J162: RM375.00 | K162: RM0.00 | L162: RM1,507.75 | O162: RM140,723.62 | R162: =IF(NilaiDimasukkan,IF(R161<1,0,NPER($E$5/12,-$J$3,O162)),"") -> 175
B163: =ROWS($B$19:B163) -> 145 | C163: 2024-09-06 | D163: RM140,723.62 | E163: RM586.35 | F163: RM546.40 | J163: RM375.00 | K163: RM0.00 | L163: RM1,507.75 | O163: RM140,177.21 | R163: =IF(NilaiDimasukkan,IF(R162<1,0,NPER($E$5/12,-$J$3,O163)),"") -> 174
B164: =ROWS($B$19:B164) -> 146 | C164: 2024-10-06 | D164: RM140,177.21 | E164: RM584.07 | F164: RM548.68 | J164: RM375.00 | K164: RM0.00 | L164: RM1,507.75 | O164: RM139,628.53 | R164: =IF(NilaiDimasukkan,IF(R163<1,0,NPER($E$5/12,-$J$3,O164)),"") -> 173
B165: =ROWS($B$19:B165) -> 147 | C165: 2024-11-06 | D165: RM139,628.53 | E165: RM581.79 | F165: RM550.97 | J165: RM375.00 | K165: RM0.00 | L165: RM1,507.75 | O165: RM139,077.57 | R165: =IF(NilaiDimasukkan,IF(R164<1,0,NPER($E$5/12,-$J$3,O165)),"") -> 172
B166: =ROWS($B$19:B166) -> 148 | C166: 2024-12-06 | D166: RM139,077.57 | E166: RM579.49 | F166: RM553.26 | J166: RM375.00 | K166: RM0.00 | L166: RM1,507.75 | O166: RM138,524.30 | R166: =IF(NilaiDimasukkan,IF(R165<1,0,NPER($E$5/12,-$J$3,O166)),"") -> 171
B167: =ROWS($B$19:B167) -> 149 | C167: 2025-01-06 | D167: RM138,524.30 | E167: RM577.18 | F167: RM555.57 | J167: RM375.00 | K167: RM0.00 | L167: RM1,507.75 | O167: RM137,968.74 | R167: =IF(NilaiDimasukkan,IF(R166<1,0,NPER($E$5/12,-$J$3,O167)),"") -> 170
B168: =ROWS($B$19:B168) -> 150 | C168: 2025-02-06 | D168: RM137,968.74 | E168: RM574.87 | F168: RM557.88 | J168: RM375.00 | K168: RM0.00 | L168: RM1,507.75 | O168: RM137,410.86 | R168: =IF(NilaiDimasukkan,IF(R167<1,0,NPER($E$5/12,-$J$3,O168)),"") -> 169
B169: =ROWS($B$19:B169) -> 151 | C169: 2025-03-06 | D169: RM137,410.86 | E169: RM572.55 | F169: RM560.21 | J169: RM375.00 | K169: RM0.00 | L169: RM1,507.75 | O169: RM136,850.65 | R169: =IF(NilaiDimasukkan,IF(R168<1,0,NPER($E$5/12,-$J$3,O169)),"") -> 168
B170: =ROWS($B$19:B170) -> 152 | C170: 2025-04-06 | D170: RM136,850.65 | E170: RM570.21 | F170: RM562.54 | J170: RM375.00 | K170: RM0.00 | L170: RM1,507.75 | O170: RM136,288.11 | R170: =IF(NilaiDimasukkan,IF(R169<1,0,NPER($E$5/12,-$J$3,O170)),"") -> 167
B171: =ROWS($B$19:B171) -> 153 | C171: 2025-05-06 | D171: RM136,288.11 | E171: RM567.87 | F171: RM564.88 | J171: RM375.00 | K171: RM0.00 | L171: RM1,507.75 | O171: RM135,723.22 | R171: =IF(NilaiDimasukkan,IF(R170<1,0,NPER($E$5/12,-$J$3,O171)),"") -> 166
B172: =ROWS($B$19:B172) -> 154 | C172: 2025-06-06 | D172: RM135,723.22 | E172: RM565.51 | F172: RM567.24 | J172: RM375.00 | K172: RM0.00 | L172: RM1,507.75 | O172: RM135,155.99 | R172: =IF(NilaiDimasukkan,IF(R171<1,0,NPER($E$5/12,-$J$3,O172)),"") -> 165
B173: =ROWS($B$19:B173) -> 155 | C173: 2025-07-06 | D173: RM135,155.99 | E173: RM563.15 | F173: RM569.60 | J173: RM375.00 | K173: RM0.00 | L173: RM1,507.75 | O173: RM134,586.38 | R173: =IF(NilaiDimasukkan,IF(R172<1,0,NPER($E$5/12,-$J$3,O173)),"") -> 164
B174: =ROWS($B$19:B174) -> 156 | C174: 2025-08-06 | D174: RM134,586.38 | E174: RM560.78 | F174: RM571.98 | J174: RM375.00 | K174: RM0.00 | L174: RM1,507.75 | O174: RM134,014.41 | R174: =IF(NilaiDimasukkan,IF(R173<1,0,NPER($E$5/12,-$J$3,O174)),"") -> 163
B175: =ROWS($B$19:B175) -> 157 | C175: 2025-09-06 | D175: RM134,014.41 | E175: RM558.39 | F175: RM574.36 | J175: RM375.00 | K175: RM0.00 | L175: RM1,507.75 | O175: RM133,440.05 | R175: =IF(NilaiDimasukkan,IF(R174<1,0,NPER($E$5/12,-$J$3,O175)),"") -> 162
B176: =ROWS($B$19:B176) -> 158 | C176: 2025-10-06 | D176: RM133,440.05 | E176: RM556.00 | F176: RM576.75 | J176: RM375.00 | K176: RM0.00 | L176: RM1,507.75 | O176: RM132,863.30 | R176: =IF(NilaiDimasukkan,IF(R175<1,0,NPER($E$5/12,-$J$3,O176)),"") -> 161
B177: =ROWS($B$19:B177) -> 159 | C177: 2025-11-06 | D177: RM132,863.30 | E177: RM553.60 | F177: RM579.15 | J177: RM375.00 | K177: RM0.00 | L177: RM1,507.75 | O177: RM132,284.14 | R177: =IF(NilaiDimasukkan,IF(R176<1,0,NPER($E$5/12,-$J$3,O177)),"") -> 160
B178: =ROWS($B$19:B178) -> 160 | C178: 2025-12-06 | D178: RM132,284.14 | E178: RM551.18 | F178: RM581.57 | J178: RM375.00 | K178: RM0.00 | L178: RM1,507.75 | O178: RM131,702.58 | R178: =IF(NilaiDimasukkan,IF(R177<1,0,NPER($E$5/12,-$J$3,O178)),"") -> 159
B179: =ROWS($B$19:B179) -> 161 | C179: 2026-01-06 | D179: RM131,702.58 | E179: RM548.76 | F179: RM583.99 | J179: RM375.00 | K179: RM0.00 | L179: RM1,507.75 | O179: RM131,118.59 | R179: =IF(NilaiDimasukkan,IF(R178<1,0,NPER($E$5/12,-$J$3,O179)),"") -> 158
B180: =ROWS($B$19:B180) -> 162 | C180: 2026-02-06 | D180: RM131,118.59 | E180: RM546.33 | F180: RM586.42 | J180: RM375.00 | K180: RM0.00 | L180: RM1,507.75 | O180: RM130,532.16 | R180: =IF(NilaiDimasukkan,IF(R179<1,0,NPER($E$5/12,-$J$3,O180)),"") -> 157
B181: =ROWS($B$19:B181) -> 163 | C181: 2026-03-06 | D181: RM130,532.16 | E181: RM543.88 | F181: RM588.87 | J181: RM375.00 | K181: RM0.00 | L181: RM1,507.75 | O181: RM129,943.29 | R181: =IF(NilaiDimasukkan,IF(R180<1,0,NPER($E$5/12,-$J$3,O181)),"") -> 156
B182: =ROWS($B$19:B182) -> 164 | C182: 2026-04-06 | D182: RM129,943.29 | E182: RM541.43 | F182: RM591.32 | J182: RM375.00 | K182: RM0.00 | L182: RM1,507.75 | O182: RM129,351.97 | R182: =IF(NilaiDimasukkan,IF(R181<1,0,NPER($E$5/12,-$J$3,O182)),"") -> 155
B183: =ROWS($B$19:B183) -> 165 | C183: 2026-05-06 | D183: RM129,351.97 | E183: RM538.97 | F183: RM593.79 | J183: RM375.00 | K183: RM0.00 | L183: RM1,507.75 | O183: RM128,758.19 | R183: =IF(NilaiDimasukkan,IF(R182<1,0,NPER($E$5/12,-$J$3,O183)),"") -> 154
B184: =ROWS($B$19:B184) -> 166 | C184: 2026-06-06 | D184: RM128,758.19 | E184: RM536.49 | F184: RM596.26 | J184: RM375.00 | K184: RM0.00 | L184: RM1,507.75 | O184: RM128,161.93 | R184: =IF(NilaiDimasukkan,IF(R183<1,0,NPER($E$5/12,-$J$3,O184)),"") -> 153
B185: =ROWS($B$19:B185) -> 167 | C185: 2026-07-06 | D185: RM128,161.93 | E185: RM534.01 | F185: RM598.74 | J185: RM375.00 | K185: RM0.00 | L185: RM1,507.75 | O185: RM127,563.18 | R185: =IF(NilaiDimasukkan,IF(R184<1,0,NPER($E$5/12,-$J$3,O185)),"") -> 152
B186: =ROWS($B$19:B186) -> 168 | C186: 2026-08-06 | D186: RM127,563.18 | E186: RM531.51 | F186: RM601.24 | J186: RM375.00 | K186: RM0.00 | L186: RM1,507.75 | O186: RM126,961.95 | R186: =IF(NilaiDimasukkan,IF(R185<1,0,NPER($E$5/12,-$J$3,O186)),"") -> 151
B187: =ROWS($B$19:B187) -> 169 | C187: 2026-09-06 | D187: RM126,961.95 | E187: RM529.01 | F187: RM603.74 | J187: RM375.00 | K187: RM0.00 | L187: RM1,507.75 | O187: RM126,358.20 | R187: =IF(NilaiDimasukkan,IF(R186<1,0,NPER($E$5/12,-$J$3,O187)),"") -> 150
B188: =ROWS($B$19:B188) -> 170 | C188: 2026-10-06 | D188: RM126,358.20 | E188: RM526.49 | F188: RM606.26 | J188: RM375.00 | K188: RM0.00 | L188: RM1,507.75 | O188: RM125,751.94 | R188: =IF(NilaiDimasukkan,IF(R187<1,0,NPER($E$5/12,-$J$3,O188)),"") -> 149
B189: =ROWS($B$19:B189) -> 171 | C189: 2026-11-06 | D189: RM125,751.94 | E189: RM523.97 | F189: RM608.79 | J189: RM375.00 | K189: RM0.00 | L189: RM1,507.75 | O189: RM125,143.16 | R189: =IF(NilaiDimasukkan,IF(R188<1,0,NPER($E$5/12,-$J$3,O189)),"") -> 148
B190: =ROWS($B$19:B190) -> 172 | C190: 2026-12-06 | D190: RM125,143.16 | E190: RM521.43 | F190: RM611.32 | J190: RM375.00 | K190: RM0.00 | L190: RM1,507.75 | O190: RM124,531.84 | R190: =IF(NilaiDimasukkan,IF(R189<1,0,NPER($E$5/12,-$J$3,O190)),"") -> 147
B191: =ROWS($B$19:B191) -> 173 | C191: 2027-01-06 | D191: RM124,531.84 | E191: RM518.88 | F191: RM613.87 | J191: RM375.00 | K191: RM0.00 | L191: RM1,507.75 | O191: RM123,917.97 | R191: =IF(NilaiDimasukkan,IF(R190<1,0,NPER($E$5/12,-$J$3,O191)),"") -> 146
B192: =ROWS($B$19:B192) -> 174 | C192: 2027-02-06 | D192: RM123,917.97 | E192: RM516.32 | F192: RM616.43 | J192: RM375.00 | K192: RM0.00 | L192: RM1,507.75 | O192: RM123,301.54 | R192: =IF(NilaiDimasukkan,IF(R191<1,0,NPER($E$5/12,-$J$3,O192)),"") -> 145
B193: =ROWS($B$19:B193) -> 175 | C193: 2027-03-06 | D193: RM123,301.54 | E193: RM513.76 | F193: RM619.00 | J193: RM375.00 | K193: RM0.00 | L193: RM1,507.75 | O193: RM122,682.54 | R193: =IF(NilaiDimasukkan,IF(R192<1,0,NPER($E$5/12,-$J$3,O193)),"") -> 144
B194: =ROWS($B$19:B194) -> 176 | C194: 2027-04-06 | D194: RM122,682.54 | E194: RM511.18 | F194: RM621.57 | J194: RM375.00 | K194: RM0.00 | L194: RM1,507.75 | O194: RM122,060.97 | R194: =IF(NilaiDimasukkan,IF(R193<1,0,NPER($E$5/12,-$J$3,O194)),"") -> 143
B195: =ROWS($B$19:B195) -> 177 | C195: 2027-05-06 | D195: RM122,060.97 | E195: RM508.59 | F195: RM624.16 | J195: RM375.00 | K195: RM0.00 | L195: RM1,507.75 | O195: RM121,436.81 | R195: =IF(NilaiDimasukkan,IF(R194<1,0,NPER($E$5/12,-$J$3,O195)),"") -> 142
B196: =ROWS($B$19:B196) -> 178 | C196: 2027-06-06 | D196: RM121,436.81 | E196: RM505.99 | F196: RM626.77 | J196: RM375.00 | K196: RM0.00 | L196: RM1,507.75 | O196: RM120,810.04 | R196: =IF(NilaiDimasukkan,IF(R195<1,0,NPER($E$5/12,-$J$3,O196)),"") -> 141
B197: =ROWS($B$19:B197) -> 179 | C197: 2027-07-06 | D197: RM120,810.04 | E197: RM503.38 | F197: RM629.38 | J197: RM375.00 | K197: RM0.00 | L197: RM1,507.75 | O197: RM120,180.66 | R197: =IF(NilaiDimasukkan,IF(R196<1,0,NPER($E$5/12,-$J$3,O197)),"") -> 140
B198: =ROWS($B$19:B198) -> 180 | C198: 2027-08-06 | D198: RM120,180.66 | E198: RM500.75 | F198: RM632.00 | J198: RM375.00 | K198: RM0.00 | L198: RM1,507.75 | O198: RM119,548.67 | R198: =IF(NilaiDimasukkan,IF(R197<1,0,NPER($E$5/12,-$J$3,O198)),"") -> 139
B199: =ROWS($B$19:B199) -> 181 | C199: 2027-09-06 | D199: RM119,548.67 | E199: RM498.12 | F199: RM634.63 | J199: RM375.00 | K199: RM0.00 | L199: RM1,507.75 | O199: RM118,914.03 | R199: =IF(NilaiDimasukkan,IF(R198<1,0,NPER($E$5/12,-$J$3,O199)),"") -> 138
B200: =ROWS($B$19:B200) -> 182 | C200: 2027-10-06 | D200: RM118,914.03 | E200: RM495.48 | F200: RM637.28 | J200: RM375.00 | K200: RM0.00 | L200: RM1,507.75 | O200: RM118,276.76 | R200: =IF(NilaiDimasukkan,IF(R199<1,0,NPER($E$5/12,-$J$3,O200)),"") -> 137
B201: =ROWS($B$19:B201) -> 183 | C201: 2027-11-06 | D201: RM118,276.76 | E201: RM492.82 | F201: RM639.93 | J201: RM375.00 | K201: RM0.00 | L201: RM1,507.75 | O201: RM117,636.82 | R201: =IF(NilaiDimasukkan,IF(R200<1,0,NPER($E$5/12,-$J$3,O201)),"") -> 136
B202: =ROWS($B$19:B202) -> 184 | C202: 2027-12-06 | D202: RM117,636.82 | E202: RM490.15 | F202: RM642.60 | J202: RM375.00 | K202: RM0.00 | L202: RM1,507.75 | O202: RM116,994.23 | R202: =IF(NilaiDimasukkan,IF(R201<1,0,NPER($E$5/12,-$J$3,O202)),"") -> 135
B203: =ROWS($B$19:B203) -> 185 | C203: 2028-01-06 | D203: RM116,994.23 | E203: RM487.48 | F203: RM645.28 | J203: RM375.00 | K203: RM0.00 | L203: RM1,507.75 | O203: RM116,348.95 | R203: =IF(NilaiDimasukkan,IF(R202<1,0,NPER($E$5/12,-$J$3,O203)),"") -> 134
B204: =ROWS($B$19:B204) -> 186 | C204: 2028-02-06 | D204: RM116,348.95 | E204: RM484.79 | F204: RM647.96 | J204: RM375.00 | K204: RM0.00 | L204: RM1,507.75 | O204: RM115,700.99 | R204: =IF(NilaiDimasukkan,IF(R203<1,0,NPER($E$5/12,-$J$3,O204)),"") -> 133
B205: =ROWS($B$19:B205) -> 187 | C205: 2028-03-06 | D205: RM115,700.99 | E205: RM482.09 | F205: RM650.66 | J205: RM375.00 | K205: RM0.00 | L205: RM1,507.75 | O205: RM115,050.32 | R205: =IF(NilaiDimasukkan,IF(R204<1,0,NPER($E$5/12,-$J$3,O205)),"") -> 132
B206: =ROWS($B$19:B206) -> 188 | C206: 2028-04-06 | D206: RM115,050.32 | E206: RM479.38 | F206: RM653.38 | J206: RM375.00 | K206: RM0.00 | L206: RM1,507.75 | O206: RM114,396.95 | R206: =IF(NilaiDimasukkan,IF(R205<1,0,NPER($E$5/12,-$J$3,O206)),"") -> 131
B207: =ROWS($B$19:B207) -> 189 | C207: 2028-05-06 | D207: RM114,396.95 | E207: RM476.65 | F207: RM656.10 | J207: RM375.00 | K207: RM0.00 | L207: RM1,507.75 | O207: RM113,740.85 | R207: =IF(NilaiDimasukkan,IF(R206<1,0,NPER($E$5/12,-$J$3,O207)),"") -> 130
... 231 more rows

Sheet Seting
A1: Seting untuk Senario Bayaran Bulanan
B2: Maklumat dalam jadual di bawah menyediakan pilihan untuk senarai juntai bawah senario bayaran bulanan dan nilai digunakan dalam senario pengiraan. Sebarang perubahan dibuat pada jadual akan menyebabkan ralat senario.
B4: seting | C4: lebih 10% | D4: 110%
C5: lebih 25% | D5: 125%
C6: bayaran biasa | D6: 100%
C7: kurang 10% | D7: 90%
C8: lebih 15% | D8: 85%
